Departmental Family ,Entity,Transaction  Number,Payment Date,Account Name,Expense Area,Supplier,Description, Base Amount 
BIS,NMO,90363306,01/05/2014,Building Service Charges,Estates,Amey Community Ltd ,Estates repairs / renewals,1681.03
BIS,NMO,90366658,01/05/2014,Building Service Charges,Estates,Amey Community Ltd ,Estates repairs / renewals,1406.65
BIS,NMO,90366710,01/05/2014,Building Service Charges,Estates,Amey Community Ltd ,Estates repairs / renewals,358.41
BIS,NMO,90366711,01/05/2014,Building Service Charges,Estates,Amey Community Ltd ,Estates repairs / renewals,201.71
BIS,NMO,90366712,01/05/2014,IT Software Licences & Mainten,Estates,Amey Community Ltd ,Estates repairs / renewals,3993.43
BIS,NMO,90363306,01/05/2014,Building Construction,Estates,Amey Community Ltd ,Estates repairs / renewals,2017.24
BIS,NMO,90366691,01/05/2014,Building Construction,Estates,Amey Community Ltd ,Estates repairs / renewals,4542.60
BIS,NMO,125337-B,01/05/2014,Capital Contractors,Estates,Henningson Durham and Richards,Capital Contractors work to 30 Nov 2013,227635.20
BIS,NMO,2346364696,01/05/2014,Car Hire & Leasing,Certification Services,Hertz UK Limited,Car hire,116.65
BIS,NMO,45646,01/05/2014,Conferences & Exhibitions,Programmes,Lensbury,EMT conference,3507.52
BIS,NMO,O315960,01/05/2014,Contractors costs,Certification Services,Omega,Contractor's travel costs,177.63
BIS,NMO,O315979,01/05/2014,Contractors costs,Certification Services,Omega,Contractor's travel costs,60.00
BIS,NMO,O316302,01/05/2014,Contractors costs,Certification Services,Omega,Contractor's travel costs,1325.25
BIS,NMO,O316739,01/05/2014,Contractors costs,Certification Services,Omega,Contractor's travel costs,459.83
BIS,NMO,2187,01/05/2014,Contractors costs,Estates,Powis Hughes & Associates,Professional Valuation costs,45300.00
BIS,NMO,270027707,01/05/2014,Scientific Equipment,Certification Services,R S Components Limited,Credit note,-13.04
BIS,NMO,275976841,01/05/2014,Scientific Equipment,Certification Services,R S Components Limited,Scientific Equipment,22.24
BIS,NMO,SIN013954,01/05/2014,IT Services,Corporate Services,Real Asset Management Plc,Asset data merge service,1500.00
BIS,NMO,16/04/2014,01/05/2014,Hospitality,Certification Services,The Cavan Bakery,Hospitality for meeting ,132.48
BIS,NMO,5354,08/05/2014,Website Maintenance,Corporate Services,ActiveIS Limited,Maintenance of NMO webiste,838.80
BIS,NMO,90366719,08/05/2014,Building Service Charges,Estates,Amey Community Ltd ,FM contract,22647.43
BIS,NMO,90366719,08/05/2014,Building Service Charges,Estates,Amey Community Ltd ,FM contract,320750.89
BIS,NMO,90366720,08/05/2014,Building Service Charges,Estates,Amey Community Ltd ,Car park,813.56
BIS,NMO,90366721,08/05/2014,Building Service Charges,Estates,Amey Community Ltd ,Security services,13398.65
BIS,NMO,90366660,08/05/2014,Building Construction,Estates,Amey Community Ltd ,Estates repairs / renewals,7100.20
BIS,NMO,90366663,08/05/2014,Building Construction,Estates,Amey Community Ltd ,Estates repairs / renewals,44403.37
BIS,NMO,90366665,08/05/2014,Building Construction,Estates,Amey Community Ltd ,Estates repairs / renewals,22777.67
BIS,NMO,90366693,08/05/2014,Building Construction,Estates,Amey Community Ltd ,Estates repairs / renewals,22057.93
BIS,NMO,90366701,08/05/2014,Building Construction,Estates,Amey Community Ltd ,Estates repairs / renewals,7090.76
BIS,NMO,90366707,08/05/2014,Building Construction,Estates,Amey Community Ltd ,Estates repairs / renewals,38053.48
BIS,NMO,28080436,08/05/2014,Stationery,Corporate Services,Banner Business Services Ltd,Stationery,28.58
BIS,NMO,44071808,08/05/2014,Postage,Corporate Services,Francotyp - Postalia Limited,Postage for franking m/c,1000.00
BIS,NMO,14003,08/05/2014,Contractors costs,Certification Services,Legal Metrology Consultancy Service,Auditing services,603.24
BIS,NMO,50310176,08/05/2014,NMS Science Programmes,Programmes,LGC Ltd,IRD Programme,115724.00
BIS,NMO,50310296,08/05/2014,NMS Science Programmes,Programmes,LGC Ltd,Chem & Bio Programme,125652.00
BIS,NMO,50310297,08/05/2014,NMS Science Programmes,Programmes,LGC Ltd,Chem & Bio Programme,129167.00
BIS,NMO,50310298,08/05/2014,NMS Science Programmes,Programmes,LGC Ltd,Chem & Bio Programme,111683.00
BIS,NMO,1284,08/05/2014,Contractors costs,Certification Services,LMCS,Auditing services,845.33
BIS,NMO,1285,08/05/2014,Contractors costs,Certification Services,LMCS,Auditing services,890.30
BIS,NMO,1286,08/05/2014,Contractors costs,Certification Services,LMCS,Auditing services,874.46
BIS,NMO,C9946,08/05/2014,NMS Science Programmes,Programmes,NPL Management Ltd,Chem & Bio Programme,42524.83
BIS,NMO,C9948,08/05/2014,NMS Science Programmes,Programmes,NPL Management Ltd,EMT Programme,114138.85
BIS,NMO,C9949,08/05/2014,NMS Science Programmes,Programmes,NPL Management Ltd,Materials &Modelling Prog,218928.21
BIS,NMO,C9952,08/05/2014,NMS Science Programmes,Programmes,NPL Management Ltd,EMT Programme,358428.02
BIS,NMO,C9954,08/05/2014,NMS Science Programmes,Programmes,NPL Management Ltd,Chem & Bio Programme,180380.60
BIS,NMO,C9956,08/05/2014,NMS Science Programmes,Programmes,NPL Management Ltd,Materials &Modelling Prog,194404.80
BIS,NMO,C9958,08/05/2014,NMS Science Programmes,Programmes,NPL Management Ltd,IRD Programme,309434.16
BIS,NMO,C9963,08/05/2014,NMS Science Programmes,Programmes,NPL Management Ltd,IRD Programme,75119.43
BIS,NMO,C9966,08/05/2014,NMS Science Programmes,Programmes,NPL Management Ltd,EMT Programme,225505.55
BIS,NMO,C9967,08/05/2014,NMS Science Programmes,Programmes,NPL Management Ltd,Materials &Modelling Prog,136606.59
BIS,NMO,C9969,08/05/2014,NMS Science Programmes,Programmes,NPL Management Ltd,Chem & Bio Programme,291512.76
BIS,NMO,C9970,08/05/2014,NMS Science Programmes,Programmes,NPL Management Ltd,PPKT Programme,193921.24
BIS,NMO,C9940,08/05/2014,NMS Science Programmes,Programmes,NPL Management Ltd,Materials &Modelling Prog,-10005.28
BIS,NMO,C9957,08/05/2014,NMS Science Programmes,Programmes,NPL Management Ltd,PPKT Programme,8420.45
BIS,NMO,55843,08/05/2014,Electricity,Estates,NPL Management Ltd,Electricity Feb-March 201,4781.22
BIS,NMO,C9945,08/05/2014,NMS Science Programmes,Programmes,NPL Management Ltd,IRD Programme,68408.72
BIS,NMO,14/5552,08/05/2014,Publications,Programmes,Parliamentary & Scientific Com,Publications,20.00
BIS,NMO,GBE177778,08/05/2014,Laboratory Testing,Utilities,SGS United Kingdom Ltd,Gas meter dispute testing ,32105.12
BIS,NMO,GBE177880,08/05/2014,Laboratory Testing,Utilities,SGS United Kingdom Ltd,Electricity meter testing ,6793.40
BIS,NMO,V371477,08/05/2014,Computer Peripherals,Corporate Services,XMA Ltd,Computer Peripherals,92.59
BIS,NMO,5353,15/05/2014,Website Maintenance,Enforcement ,ActiveIS Limited,Maintenance of RoHS website,501.60
BIS,NMO,A17176,15/05/2014,Miscellaneous,Enforcement ,Auto Mobile Valet Limited,Valet of pool cars,87.50
BIS,NMO,28116225,15/05/2014,Stationery,Corporate Services,Banner Business Services Ltd,Stationery,247.75
BIS,NMO,28136828,15/05/2014,Stationery,Corporate Services,Banner Business Services Ltd,Stationery,73.57
BIS,NMO,6050909,15/05/2014,Training,Enforcement ,Bond Solon Limited,Training course ,490.00
BIS,NMO,6050910,15/05/2014,Training,Enforcement ,Bond Solon Limited,Training course ,490.00
BIS,NMO,6050911,15/05/2014,Training,Enforcement ,Bond Solon Limited,Training course ,490.00
BIS,NMO,6051570,15/05/2014,Training,Enforcement ,Bond Solon Limited,Training course ,490.00
BIS,NMO,6051571,15/05/2014,Training,Enforcement ,Bond Solon Limited,Training course ,490.00
BIS,NMO,6051572,15/05/2014,Training,Enforcement ,Bond Solon Limited,Training course ,490.00
BIS,NMO,6051573,15/05/2014,Training,Enforcement ,Bond Solon Limited,Training course ,490.00
BIS,NMO,6051574,15/05/2014,Training,Enforcement ,Bond Solon Limited,Training course ,87.00
BIS,NMO,6051611,15/05/2014,Training,Enforcement ,Bond Solon Limited,Training course ,490.00
BIS,NMO,6051612,15/05/2014,Training,Enforcement ,Bond Solon Limited,Training course ,490.00
BIS,NMO,6051613,15/05/2014,Training,Enforcement ,Bond Solon Limited,Training course ,490.00
BIS,NMO,6051615,15/05/2014,Training,Enforcement ,Bond Solon Limited,Training course ,87.00
BIS,NMO,6051727,15/05/2014,Training,Enforcement ,Bond Solon Limited,Training course ,470.00
BIS,NMO,6051729,15/05/2014,Training,Enforcement ,Bond Solon Limited,Training course ,20.00
BIS,NMO,X38367,15/05/2014,Training,Enforcement ,Capita Business Services Ltd,Training course ,134.00
BIS,NMO,HSC7993774,15/05/2014,Courier Services,Certification Services,DHL International (UK) Ltd,Courier Services,80.15
BIS,NMO,109833,15/05/2014,Calibrating Equipment,Certification Services,Environmental & Technical Serv,Refrigerant conversion,2117.70
BIS,NMO,630261,15/05/2014,Legal Services,Change & Development Team,Field Fisher Waterhouse,Legal services,4072.60
BIS,NMO,2346379320,15/05/2014,Car Hire & Leasing,Certification Services,Hertz UK Limited,Car hire,46.92
BIS,NMO,2346322367,15/05/2014,Car Hire & Leasing,Enforcement ,Hertz UK Limited,Car hire,73.68
BIS,NMO,J017148494,15/05/2014,Telecommunications,Corporate Services,Intercity Telecom Ltd,Mobile phone bill,1224.15
BIS,NMO,SI449444,15/05/2014,Calibrating Equipment,Certification Services,Mettler-Toledo Ltd,Repair of machinery,4545.96
BIS,NMO,O316993,15/05/2014,Contractors costs,Certification Services,Omega,Contractor's travel costs,135.80
BIS,NMO,1532,15/05/2014,Training,Enforcement ,QA Associates Limited,Registration fees,87.00
BIS,NMO,1551,15/05/2014,Training,Enforcement ,QA Associates Limited,Registration fees,174.00
BIS,NMO,DE3502024,15/05/2014,Website Maintenance,Corporate Services,RM Plc,Domain name hosting renew,56.70
BIS,NMO,9047222091,15/05/2014,Postage,Corporate Services,Royal Mail,Postage collection fee,944.40
BIS,NMO,41115,15/05/2014,ICT & Office Equipment,Corporate Services,Sapphire Financial Systems Ltd,Upgrade of SUN systems,1735.25
BIS,NMO,40946,15/05/2014,IT Software Licences & Mainten,Corporate Services,Sapphire Financial Systems Ltd,Sun Sytems Annual Maintenance charge,15717.91
BIS,NMO,1655004,15/05/2014,Courier Services,Certification Services,Streetwise Couriers Surrey Ltd,Courier Services,84.42
BIS,NMO,1655004,15/05/2014,Courier Services,Certification Services,Streetwise Couriers Surrey Ltd,Courier Services,117.58
BIS,NMO,994410,15/05/2014,IT Services,Corporate Services,Triad Group Plc,Helpdesk & support April,3780.00
BIS,NMO,014-2014,19/05/2014,Seminars & Conferences,Programmes,Croatian Metrology Institute,Croatian Metrology Inst,261.76
BIS,NMO,90366526,22/05/2014,Building Service Charges,Estates,Amey Community Ltd ,Security services on Estate,10092.86
BIS,NMO,90366649a,22/05/2014,Building Construction,Estates,Amey Community Ltd ,Estates repairs / renewals,3885.18
BIS,NMO,90366649b,22/05/2014,Building Construction,Estates,Amey Community Ltd ,Estates repairs / renewals,20235.17
BIS,NMO,90366657,22/05/2014,Building Construction,Estates,Amey Community Ltd ,Estates repairs / renewals,1963.55
BIS,NMO,90366662a,22/05/2014,Building Construction,Estates,Amey Community Ltd ,Estates repairs / renewals,5176.83
BIS,NMO,90366662b,22/05/2014,Building Construction,Estates,Amey Community Ltd ,Estates repairs / renewals,2072.21
BIS,NMO,90366669,22/05/2014,Building Construction,Estates,Amey Community Ltd ,Estates repairs / renewals,5376.49
BIS,NMO,90366672,22/05/2014,Building Construction,Estates,Amey Community Ltd ,Estates repairs / renewals,5413.13
BIS,NMO,90366686,22/05/2014,Building Construction,Estates,Amey Community Ltd ,Estates repairs / renewals,9844.16
BIS,NMO,90366689,22/05/2014,Building Construction,Estates,Amey Community Ltd ,Estates repairs / renewals,6874.76
BIS,NMO,90366704a,22/05/2014,Building Construction,Estates,Amey Community Ltd ,Estates repairs / renewals,6657.79
BIS,NMO,90366709a,22/05/2014,Building Construction,Estates,Amey Community Ltd ,Estates repairs / renewals,7532.94
BIS,NMO,90366709b,22/05/2014,Building Construction,Estates,Amey Community Ltd ,Estates repairs / renewals,5217.53
BIS,NMO,90366704b,22/05/2014,Plant & machinery,Estates,Amey Community Ltd ,Estates repairs / renewals,2805.23
BIS,NMO,Proforma,22/05/2014,Calibrating Equipment,Certification Services,Bowers UK Service,UKAS calibration,143.00
BIS,NMO,94042529,22/05/2014,UKAS Accreditation Fees,Corporate Services,British Standards Institution,BSI OHS surveillance,879.00
BIS,NMO,9230308,22/05/2014,Gas,Estates,Corona Energy Retail 4 Limited,Gas supplied to NMO FY14/,1785.80
BIS,NMO,620017,22/05/2014,Recruitment Advertising,Corporate Services,Disclosure Scotland,New staff basic disclosure,75.00
BIS,NMO,ENV AGY,22/05/2014,Carbon Reduction Commitment Payment,Estates,Environment Agency,Subsistence Fee,1290.00
BIS,NMO,14/191,22/05/2014,Contractors costs,Programmes,Hopkins Van Mil,Leap Seconds Project,4623.00
BIS,NMO,BACS 19/05,22/05/2014,Professional Bodies Subscription,Enforcement ,IET,Membership refund,-77.00
BIS,NMO,1002993696,22/05/2014,Laboratory Testing,Enforcement ,Intertek Testing & Certification Ltd,Appliance testing,10824.00
BIS,NMO,307721,22/05/2014,Hospitality,Corporate Services,Kent & Sussex Vending,Coffee machine supplies,174.08
BIS,NMO,307722,22/05/2014,Hospitality,Corporate Services,Kent & Sussex Vending,Coffee machine supplies,38.34
BIS,NMO,14006,22/05/2014,Contractors costs,Certification Services,Legal Metrology Consultancy Service,Auditing services,974.30
BIS,NMO,116489,22/05/2014,Scientific Equipment,Certification Services,LGG Charlesworth Ltd,Taxi meter seals,370.82
BIS,NMO,1277,22/05/2014,Contractors costs,Certification Services,LMCS,Auditing services,599.00
BIS,NMO,1287,22/05/2014,Contractors costs,Certification Services,LMCS,Auditing services,1131.45
BIS,NMO,1288,22/05/2014,Contractors costs,Certification Services,LMCS,Auditing services,886.80
BIS,NMO,C9950,22/05/2014,NMS Science Programmes,Programmes,NPL Management Ltd,International Metrology Programme,5380.17
BIS,NMO,C9951,22/05/2014,NMS Science Programmes,Programmes,NPL Management Ltd,AIR Programme,274456.63
BIS,NMO,C9953,22/05/2014,NMS Science Programmes,Programmes,NPL Management Ltd,Engineering & Flow Programme,284187.30
BIS,NMO,C9955,22/05/2014,NMS Science Programmes,Programmes,NPL Management Ltd,Engineering & Flow Programme,31309.94
BIS,NMO,C9961,22/05/2014,NMS Science Programmes,Programmes,NPL Management Ltd,AIR Programme,166709.42
BIS,NMO,C9962,22/05/2014,NMS Science Programmes,Programmes,NPL Management Ltd,AIR Programme,140996.41
BIS,NMO,C9968,22/05/2014,NMS Science Programmes,Programmes,NPL Management Ltd,Engineering & Flow Programme,328574.50
BIS,NMO,407312,22/05/2014,Contractors costs,Programmes,Office for Public Management,Contractors costs,17427.50
BIS,NMO,O317691,22/05/2014,Contractors costs,Certification Services,Omega,Contractor's travel costs,297.95
BIS,NMO,253263,22/05/2014,Travel & Subsistence,Certification Services,Parker Cars Ltd,Taxis for staff,44.54
BIS,NMO,253263,22/05/2014,Travel & Subsistence,Enforcement ,Parker Cars Ltd,Taxis for staff,31.73
BIS,NMO,253263,22/05/2014,Travel & Subsistence,Enforcement ,Parker Cars Ltd,Taxis for staff,155.80
BIS,NMO,406100,22/05/2014,Solicitors Treasury,Corporate Services,The Treasury Solicitor,Treas Sols chg to 30/04,1052.40
BIS,NMO,1790032368,22/05/2014,NMS Science Programmes,Programmes,TUV SUD NEL Ltd,Engineering & Flow Programme,133900.00
BIS,NMO,1790032388,22/05/2014,NMS Science Programmes,Programmes,TUV SUD NEL Ltd,Engineering & Flow Programme,66750.00
BIS,NMO,1790032392,22/05/2014,NMS Science Programmes,Programmes,TUV SUD NEL Ltd,Engineering & Flow Programme,116500.00
BIS,NMO,14040001,22/05/2014,Computer Peripherals,Certification Services,Williams Lea Ltd,NMO USB drives,952.18
BIS,NMO,14040001,22/05/2014,Computer Peripherals,Certification Services,Williams Lea Ltd,NMO USB drives,952.18
BIS,NMO,14040001,22/05/2014,Computer Peripherals,Corporate Services,Williams Lea Ltd,NMO USB drives,317.39
